bitfinex/quotes_ETHUSD_20250215
["timestamp","ask_amount","ask_price","bid_price","bid_amount"]
[1739628298021,0.27,2703.7,2703.3,3.69908]
[1739628298402,0.27,2703.7,2703.5,3.69889]
[1739628298717,0.27,2703.9,2703.5,3.69889]
[1739628299799,3.96836,2703.9,2703.3,7.3982]
[1739628300005,3.96836,2703.9,2703.3,3.69909]
[1739628300413,0.8174,2703.8,2703.1,4.49677]
[1739628300614,3.69864,2703.7,2703.1,4.49677]
[1739628300809,4.5159,2703.8,2703.1,4.49677]
[1739628301012,3.0,2703.8,2703.3,3.69906]
[1739628301413,3.0,2703.8,2703.5,3.6989]
[1739628301814,0.27,2703.9,2703.7,3.69862]
[1739628302603,0.27,2703.9,2703.6,0.7942]
[1739628303031,0.27,2703.9,2703.7,3.69862]
[1739628303337,0.27,2704.1,2703.7,3.69862]
[1739628303642,3.69829,2704.0,2703.3,8.19241]
[1739628303822,3.69829,2704.0,2703.3,4.49329]
[1739628304024,0.8016,2704.2,2703.4,0.03698549]
[1739628304228,0.27,2704.2,2703.9,3.69834]
[1739628304401,0.27,2704.2,2704.0,3.69818]
[1739628304605,0.27,2704.2,2703.8,7.39689]
[1739628304830,0.27,2704.2,2703.9,3.69833]
[1739628305340,0.27,2704.2,2703.8,3.69842]
[1739628305636,0.27,2704.2,2703.8,3.69839]
[1739628305836,0.27,2704.2,2703.8,7.39681]
[1739628306005,0.27,2704.2,2703.9,3.69833]
[1739628306336,0.27,2704.2,2703.8,3.69839]
[1739628306337,0.27,2704.2,2704.0,3.69821]
[1739628307136,0.27,2704.2,2704.0,3.69814]
[1739628307337,0.27,2704.2,2704.0,7.39628]
[1739628307539,0.27,2704.2,2704.1,3.69808]
[1739628307739,0.27,2704.2,2704.0,3.69814]
[1739628308113,0.27,2704.2,2704.0,3.6981]
[1739628308748,0.27,2704.2,2704.0,7.39624]
[1739628309060,0.1496,2704.4,2704.2,3.69794]
[1739628309574,0.1496,2704.4,2704.0,5.231924]
[1739628310013,0.1496,2704.4,2704.1,3.69808]
[1739628310363,0.1496,2704.4,2704.2,3.69794]
[1739628310743,0.1496,2704.4,2704.0,8.930014]
[1739628310929,0.1496,2704.4,2704.1,3.69801]
[1739628311106,0.1496,2704.4,2704.2,3.69786]
[1739628311313,0.1496,2704.4,2704.1,0.8929924]
[1739628311714,3.84728,2704.4,2703.9,3.69834]
[1739628311912,0.1496,2704.4,2704.0,3.6982]
[1739628312545,3.84737,2704.4,2703.8,4.49262]
[1739628312751,7.54512,2704.4,2703.8,4.49262]
[1739628313060,3.84735,2704.4,2703.8,8.19104]
[1739628313261,3.84735,2704.4,2703.9,1.357104]
[1739628313562,0.752,2704.1,2703.7,5.38]
[1739628313749,3.752,2704.1,2703.7,5.38]
[1739628314062,4.4501,2704.1,2703.7,5.38]
[1739628314556,3.69837,2703.9,2703.6,0.7383017]
[1739628314766,3.69837,2703.9,2703.3,4.47087]
[1739628314933,3.69837,2703.9,2703.4,0.817011]
[1739628315261,0.752,2703.8,2703.4,0.817011]
[1739628315556,4.45058,2703.8,2703.4,0.817011]
[1739628315758,3.69886,2703.6,2703.4,0.75271402]
[1739628315971,3.69886,2703.6,2703.0,3.69957]
[1739628316153,3.69886,2703.6,2703.1,3.69944]
[1739628317230,3.27,2703.7,2703.2,3.69929]
[1739628317443,6.96863,2703.7,2703.1,3.69944]
[1739628317964,3.27,2703.7,2703.1,3.69944]
[1739628318166,0.27,2703.7,2703.1,0.94417968]
[1739628318471,0.27,2703.7,2703.3,3.6991]
[1739628319239,3.27,2703.7,2703.3,3.6991]
[1739628319562,3.69894,2703.5,2703.1,0.94417968]
[1739628319767,4.45108,2703.4,2702.9,4.23108726]
[1739628319970,3.69933,2703.2,2702.5,18.750159]
[1739628320145,3.69954,2703.1,2702.5,4.620159]
[1739628320347,3.70014,2702.6,2702.5,0.148299]
[1739628320566,7.72214,2702.6,2702.5,0.148299]
[1739628321574,8.864354,2702.6,2702.5,0.148299]
[1739628324280,9.05177186,2702.6,2702.5,0.148299]
[1739628327374,12.57689866,2702.6,2702.5,0.148299]
[1739628328096,12.76657671,2702.6,2702.5,0.148299]
[1739628329774,15.53557671,2702.6,2702.5,9e-06]
[1739628331278,15.90587671,2702.6,2702.5,9e-06]
[1739628332301,16.00587671,2702.6,2702.5,9e-06]
[1739628333002,12.48074991,2702.6,2702.5,9e-06]
[1739628333199,12.38074991,2702.6,2702.5,9e-06]
[1739628334291,12.48074991,2702.6,2702.5,9e-06]
[1739628334485,12.38074991,2702.6,2702.5,9e-06]
[1739628335789,16.27574991,2702.6,2702.5,9e-06]
[1739628336205,12.38074991,2702.6,2702.5,9e-06]
[1739628336512,16.27574991,2702.6,2702.5,9e-06]
[1739628337989,11.83074991,2702.6,2702.5,9e-06]
[1739628338483,16.27574991,2702.6,2702.5,9e-06]
[1739628339213,21.58574991,2702.6,2702.5,9e-06]
[1739628340916,5.91968,2702.2,2702.1,9e-06]
[1739628341208,6.70275,2700.7,2700.4,0.8051]
[1739628341418,3.70264,2700.8,2700.4,0.8051]
[1739628341419,0.271,2700.6,2700.4,0.8051]
[1739628341714,3.70343,2700.2,2699.9,0.8051]
[1739628342589,3.0,2700.1,2699.9,0.8051]
[1739628342789,6.7037,2700.0,2699.9,0.8051]
[1739628343100,3.0,2700.0,2699.7,0.148299]
[1739628343295,6.70395,2699.9,2699.7,0.148299]
[1739628343510,0.273,2699.8,2699.7,0.148299]
[1739628343696,6.97697,2699.8,2699.7,0.148299]
[1739628343900,3.273,2699.8,2699.7,0.148299]
[1739628344098,6.97697,2699.8,2699.7,0.148299]
[1739628344681,3.70345,2700.2,2699.7,0.148299]
[1739628344922,0.273,2700.1,2699.9,0.55]
[1739628345111,3.0,2700.4,2700.0,1.056606]
[1739628345412,3.70235,2701.0,2699.7,0.148299]
[1739628345413,6.70397,2699.8,2699.7,0.148299]
[1739628345619,6.97697,2699.8,2699.7,0.148299]
[1739628345779,10.02507,2699.8,2699.7,0.148299]
[1739628346597,7.80607,2699.8,2699.7,0.148299]
[1739628346979,0.274,2699.8,2699.7,0.148299]
[1739628347178,0.274,2699.8,2699.7,0.698299]
[1739628347380,3.97797,2699.8,2699.7,0.148299]
[1739628347827,0.274,2699.8,2699.7,0.148299]
[1739628347977,0.275,2699.8,2699.7,1.510499]
[1739628348184,0.275,2699.9,2699.7,1.510499]
[1739628348600,3.7029,2700.6,2699.8,0.55]
[1739628348806,3.275,2700.5,2699.8,0.7560499]
[1739628349003,0.18944245,2700.5,2699.8,4.4599099]
[1739628349205,0.18944245,2700.5,2700.0,0.55]
[1739628349206,0.275,2700.4,2700.0,0.55]
[1739628349485,0.275,2700.3,2700.0,4.25367]
[1739628349683,0.275,2700.2,2700.0,4.25367]
[1739628349996,0.18944245,2700.5,2700.1,3.70356]
[1739628350191,0.275,2700.4,2700.2,3.7034]
[1739628350396,0.275,2700.4,2700.3,1.3622]
[1739628350784,0.275,2700.4,2700.3,5.06549]
[1739628350985,0.275,2700.4,2700.3,1.3622]
[1739628351316,0.275,2700.4,2700.3,0.8122]
[1739628351522,0.275,2700.4,2700.1,0.8122]
[1739628351733,6.97816,2700.4,2700.2,0.55]
[1739628351901,3.0,2700.1,2699.8,0.8122]
[1739628352392,0.275,2700.0,2699.8,0.8122]
[1739628353012,3.0,2700.3,2699.9,0.55]
[1739628353216,0.275,2700.2,2699.9,4.25375]
[1739628353832,3.97843,2700.2,2699.8,0.8122]
[1739628353980,3.97858,2700.1,2699.8,0.8122]
[1739628354185,0.275,2700.1,2699.8,0.8122]
[1739628354386,0.275,2700.0,2699.8,0.8122]
[1739628354887,0.275,2700.0,2699.9,4.25375]
[1739628355111,0.18945966,2700.6,2700.1,0.55]
[1739628355317,0.275,2700.2,2700.1,0.55]
[1739628355889,0.276,2700.8,2700.6,0.55]
[1739628356304,3.0,2700.7,2700.5,0.8122]
[1739628356735,3.276,2700.7,2700.5,0.8122]
[1739628357018,3.70291,2700.6,2700.3,0.8122]
[1739628357219,3.276,2700.7,2700.3,0.8122]
[1739628358014,6.97877,2700.7,2700.3,0.8122]
[1739628358592,7.77850368,2700.7,2700.3,0.8122]
[1739628358897,3.0,2700.4,2700.0,0.7502]
[1739628359116,0.276,2700.3,2700.0,0.7502]
[1739628359623,0.276,2700.3,2699.8,3.70386]
[1739628360199,0.46546678,2700.9,2700.1,3.70347]
[1739628360510,3.7031,2700.5,2700.0,0.7502]
[1739628360914,4.48121,2700.8,2700.2,3.70332]
[1739628361224,0.276,2700.7,2700.3,0.55]
[1739628361423,3.0,2700.8,2700.3,0.55]
[1739628361590,0.276,2700.6,2700.3,0.55]
[1739628362115,3.0,2700.5,2700.0,4.45382]
[1739628362311,3.276,2700.6,2700.0,4.4538]
[1739628362512,0.276,2700.6,2700.4,0.55]
[1739628362714,3.276,2700.6,2700.1,4.25348]
[1739628363227,3.70317,2700.4,2700.1,0.55]
[1739628363388,3.70317,2700.4,2700.0,0.7502]
[1739628363389,0.277,2700.5,2700.0,0.7502]
[1739628363597,3.70341,2700.3,2699.8,0.7502]
[1739628363810,3.70357,2700.1,2699.8,0.7502]
[1739628364135,3.7038,2700.0,2699.7,0.148299]
[1739628364335,7.40762,2700.0,2699.7,0.148299]
[1739628364634,3.7038,2700.0,2699.7,0.148299]
[1739628364842,3.0,2700.1,2699.8,0.55]
[1739628365047,3.0,2700.1,2700.0,1.3002]
[1739628365233,3.277,2700.5,2700.0,1.3002]
[1739628365538,4.42315,2700.5,2700.0,1.3002]
[1739628365939,8.1262,2700.5,2700.0,1.3002]
[1739628366149,3.70318,2700.4,2700.0,1.3002]
[1739628366353,0.7786,2700.8,2700.0,1.33723634]
[1739628366644,0.7786,2700.8,2700.2,0.55]
[1739628366645,0.277,2700.3,2700.2,0.55]
[1739628368147,0.277,2700.3,2700.2,4.25342]
[1739628368569,0.277,2700.3,2700.2,0.55]
[1739628370521,0.277,2700.3,2700.0,0.7502]
[1739628370522,3.70343,2700.2,2700.0,0.7502]
[1739628370715,3.98029,2700.3,2700.0,0.7502]
[1739628370916,0.277,2700.3,2700.0,0.7502]
[1739628371146,0.277,2700.3,2700.1,0.55]
[1739628371353,0.277,2700.3,2700.1,4.25345]
[1739628371556,0.276,2700.4,2700.1,4.25345]
[1739628371730,0.276,2700.4,2700.3,0.55]
[1739628372731,0.276,2700.4,2700.2,4.2534]
[1739628373143,0.276,2700.4,2700.2,0.55]
[1739628373341,0.276,2700.4,2700.0,4.45378]
[1739628373751,0.276,2700.4,2700.1,0.55]
[1739628375136,0.276,2700.4,2700.1,4.25349]
[1739628375336,0.276,2700.7,2700.4,3.70307]
[1739628375642,0.46546678,2700.9,2700.4,0.58702885]
[1739628375949,0.276,2700.9,2700.7,0.7529]
[1739628376116,3.70192,2701.3,2700.8,4.25259]
[1739628376317,0.276,2701.2,2700.9,3.70238]
[1739628376637,0.276,2701.2,2701.0,0.55]
[1739628377041,3.0,2701.4,2700.9,0.55]
[1739628377255,4.66715811,2701.3,2700.9,0.55]
[1739628377459,3.70223,2701.1,2700.7,0.7529]
[1739628377866,3.70234,2701.0,2700.7,0.7529]
[1739628378176,3.70268,2700.8,2700.3,0.7529]
[1739628378679,5.219,2701.0,2700.3,0.7529]
[1739628378680,3.70277,2700.7,2700.3,0.7529]
[1739628378977,3.0,2700.8,2700.4,0.55]
[1739628379573,6.70261,2700.8,2700.4,0.55]
[1739628379775,3.0,2700.8,2700.4,0.55]
[1739628379955,3.0,2700.9,2700.4,4.25315]
[1739628380150,3.70255,2700.9,2700.4,0.55]
[1739628380389,0.276,2700.8,2700.6,3.70286]
[1739628380674,0.276,2700.8,2700.4,4.25304]
[1739628380832,3.70277,2700.7,2700.4,0.55]
[1739628381028,3.276,2700.8,2700.4,0.55]
[1739628381231,3.276,2700.8,2700.4,4.25307]
[1739628381486,3.276,2700.8,2700.6,0.55]
[1739628382285,3.276,2700.8,2700.7,1.3029]
[1739628382585,0.74684031,2702.2,2700.8,1.3029]
[1739628382873,3.70121,2701.9,2701.3,1.3029]
[1739628383171,3.70154,2701.6,2701.3,1.3029]
[1739628383334,3.70178,2701.4,2700.9,0.7529]
[1739628383666,3.70195,2701.3,2700.9,0.7529]
[1739628383964,3.70178,2701.4,2700.9,0.7529]
[1739628383965,3.70178,2701.4,2701.0,0.55]
[1739628384298,0.777,2701.2,2700.6,3.70286]
[1739628384433,3.0,2701.0,2700.6,0.7529]
[1739628384634,3.70247,2700.9,2700.6,0.7529]
[1739628384836,3.70261,2700.8,2700.3,0.7529]
[1739628385190,3.70247,2700.9,2700.3,0.7529]
[1739628385191,3.70275,2700.7,2700.3,0.7529]
[1739628385666,3.70275,2700.7,2699.9,4.45664]
[1739628385667,3.70312,2700.5,2699.9,4.45664]
[1739628386040,3.70327,2700.4,2699.9,0.7529]
[1739628386968,3.70333,2700.3,2700.0,0.55]
[1739628387173,3.70333,2700.3,2699.7,0.901199]
[1739628387470,3.70333,2700.3,2699.8,0.55]
[1739628387671,3.70333,2700.3,2699.7,4.605269]
[1739628387989,3.70333,2700.3,2699.8,0.55]
[1739628388190,4.443968,2700.3,2699.7,0.901199]
[1739628388496,3.70343,2700.2,2699.7,0.901199]
[1739628388974,4.443968,2700.3,2699.8,0.55]
[1739628389347,3.0,2700.4,2700.0,0.55]
[1739628389876,3.7033,2700.3,2700.0,0.55]
[1739628390673,3.0,2700.4,2699.9,0.55]
[1739628391286,6.70316,2700.4,2699.9,0.55]
[1739628391445,3.70353,2700.2,2699.7,0.901199]
[1739628391651,3.70379,2700.0,2699.7,0.148299]
[1739628391847,3.70384,2699.9,2699.7,0.148299]
[1739628392251,0.277,2699.8,2699.7,0.148299]
[1739628392648,3.98097,2699.8,2699.7,0.148299]
[1739628393460,6.98097,2699.8,2699.7,0.148299]
[1739628393667,7.80717,2699.8,2699.7,0.148299]
[1739628398100,10.02617,2699.8,2699.7,0.148299]
[1739628398307,11.399171,2699.8,2699.7,0.148299]
[1739628403292,11.5887942,2699.8,2699.7,0.148299]
[1739628404566,11.3117942,2699.8,2699.7,0.148299]
[1739628404772,5.6846232,2699.8,2699.7,0.148299]
[1739628404974,9.3885932,2699.8,2699.7,0.148299]
[1739628405388,9.1125932,2699.8,2699.7,0.148299]
[1739628405704,9.3885932,2699.8,2699.7,0.148299]
[1739628405990,5.4086232,2699.8,2699.7,0.148299]
[1739628406303,2.225,2700.1,2699.7,4.655789]
[1739628406589,2.501,2700.1,2699.7,5.1213679]
[1739628406798,2.501,2700.1,2699.7,5.1212979]
[1739628406962,2.225,2700.1,2699.8,3.70397]
[1739628407162,2.501,2700.1,2699.7,5.1212979]
[1739628407364,0.276,2700.1,2700.0,4.5071]
[1739628407580,0.276,2700.1,2700.0,0.8034]
[1739628408396,0.276,2700.4,2700.1,0.8034]
[1739628408980,0.277,2700.3,2700.1,0.8034]
[1739628409355,0.277,2700.3,2699.8,0.8034]
[1739628410056,0.277,2700.3,2699.8,4.50737]
[1739628410260,0.277,2700.3,2699.9,3.70383]
[1739628411312,2.225,2700.4,2700.0,3.70365]
[1739628411487,0.277,2700.3,2700.2,0.8034]
[1739628411885,0.277,2700.4,2700.2,0.8034]
[1739628412100,0.277,2700.4,2700.3,0.55]
[1739628412266,0.277,2700.4,2700.3,4.25328]
[1739628412467,0.277,2700.4,2700.3,5.129291]
[1739628413065,0.277,2700.4,2700.3,0.55]
[1739628414206,0.277,2700.4,2700.3,4.25329]
[1739628414583,0.277,2700.4,2700.3,0.55]
[1739628415219,4.46298,2701.2,2700.6,3.70279]
[1739628415412,0.276,2700.9,2700.6,3.70279]
[1739628415707,3.70132,2701.8,2701.2,0.8034]
[1739628415903,3.70146,2701.7,2701.2,0.8034]
[1739628416205,3.70152,2701.6,2701.2,0.8034]
[1739628416376,3.0,2701.5,2701.2,0.8034]
[1739628417003,3.70152,2701.6,2701.2,0.8034]
[1739628417004,6.9781,2701.9,2701.2,0.8034]
[1739628417203,0.69781,2701.8,2701.3,0.55]
[1739628417512,0.7609,2702.1,2701.6,3.7015]
[1739628417712,0.277,2701.8,2701.6,0.8034]
[1739628418129,0.277,2702.0,2701.6,0.8034]
[1739628418412,0.277,2702.0,2701.8,3.7012]
[1739628418723,0.277,2702.0,2701.7,3.70128]
[1739628418724,0.277,2702.0,2701.9,4.51589]
[1739628418920,0.277,2702.0,2701.9,5.337607]
[1739628419427,3.97736,2702.5,2701.9,0.8148]
[1739628419626,3.70036,2702.5,2701.9,0.8148]
[1739628420414,0.55,2702.4,2701.9,0.8148]
[1739628421615,0.55,2702.0,2701.3,0.7719]
[1739628421790,0.55,2701.8,2701.3,0.7719]
[1739628422484,0.826,2701.8,2701.3,0.7719]
[1739628422685,0.55,2701.4,2700.9,0.7719]
[1739628422878,0.55,2701.2,2700.9,0.7719]
[1739628423333,3.70221,2701.1,2700.4,0.7719]
[1739628423552,0.55,2700.9,2700.4,0.7719]
[1739628424135,3.55,2700.7,2700.4,0.7719]
[1739628424590,7.25282,2700.7,2700.4,0.7719]
[1739628424790,3.55,2700.7,2700.4,0.7719]
[1739628425009,7.25278,2700.7,2700.4,0.7719]
[1739628425213,7.25274,2700.7,2700.4,0.7719]
[1739628426649,3.70301,2700.5,2700.0,0.7719]
[1739628427008,3.70301,2700.5,2700.0,1.52666169]
[1739628427328,3.7033,2700.3,2700.0,1.52666169]
[1739628427646,0.55,2700.2,2700.0,0.75476169]
[1739628427797,4.52946,2700.2,2699.9,8.31]
[1739628428253,0.55,2700.0,2699.9,8.31]
[1739628428394,4.2537,2700.0,2699.9,8.31]
[1739628428821,0.55,2700.1,2699.9,8.31]
[1739628428990,4.25357,2700.1,2699.9,8.31]
[1739628429662,1.3801,2700.0,2699.7,0.148299]
[1739628429985,3.55,2699.8,2699.7,0.148299]
[1739628433533,0.8301,2700.3,2699.7,0.148299]
[1739628433733,0.276,2700.3,2699.9,0.7697]
[1739628433976,0.276,2700.3,2700.0,3.70357]
[1739628434195,0.276,2700.3,2699.9,0.7697]
[1739628434488,3.70347,2700.2,2699.7,0.148299]
[1739628434701,0.55,2700.1,2699.7,0.148299]
[1739628435400,0.276,2700.3,2699.9,3.70375]
[1739628435559,0.276,2700.3,2700.0,0.7697]
[1739628435741,4.50553,2700.9,2700.0,0.7697]
[1739628436104,3.0,2701.0,2700.1,0.03703163]
[1739628436402,0.277,2700.8,2700.3,3.70317]
[1739628436603,6.70234,2701.0,2700.3,3.70317]
[1739628436752,0.827,2700.9,2700.3,3.70317]
[1739628436949,0.55,2700.7,2700.3,3.70317]
[1739628437453,0.55,2700.7,2700.1,3.70349]
[1739628438067,0.55,2700.7,2700.1,3.70347]
[1739628438265,0.55,2700.7,2700.2,3.7034]
[1739628438489,0.55,2700.7,2700.1,3.70347]
[1739628439900,0.55,2700.7,2700.1,7.40695]
[1739628440081,0.55,2700.7,2700.1,3.70347]
[1739628440500,4.25284,2700.7,2700.1,3.70347]
[1739628440656,0.55,2700.5,2700.0,0.7697]
[1739628441175,7.25351,2700.2,2699.8,0.7697]
[1739628441373,3.70338,2700.3,2699.8,0.7697]
[1739628441374,0.55,2700.3,2699.8,4.47354]
[1739628441577,0.276,2700.2,2699.8,4.47354]
[1739628442104,0.276,2700.2,2699.9,3.70383]
[1739628442407,0.276,2700.2,2699.9,3.70374]
[1739628442789,0.276,2700.2,2700.0,3.70357]
[1739628443309,0.276,2700.2,2700.1,3.70356]
[1739628443478,0.276,2700.2,2700.1,4.47326]
[1739628443806,0.55,2700.5,2700.2,3.70342]
[1739628443956,0.55,2700.5,2700.1,0.7697]
[1739628444162,3.0,2700.4,2700.1,0.7697]
[1739628444380,0.55,2700.5,2700.1,0.7697]
[1739628444613,3.0,2700.4,2699.7,0.90328153]
[1739628444896,4.25331,2700.3,2699.8,4.47355]
[1739628445191,7.95668,2700.3,2699.8,0.7697]
[1739628445393,4.25331,2700.3,2699.7,3.852369]
[1739628445554,0.55,2700.1,2699.7,0.148299]
[1739628445990,0.55,2700.2,2699.7,0.148299]
[1739628446299,0.276,2700.2,2699.8,3.70396]
[1739628446475,0.276,2700.2,2700.0,0.7697]
[1739628446961,0.276,2700.2,2700.0,4.47329]
[1739628447309,0.276,2700.2,2700.0,8.17691]
[1739628447602,0.276,2700.2,2700.1,3.70356]
[1739628450020,5.92724,2701.1,2700.4,3.70314]
[1739628450161,1.75002647,2701.2,2700.5,4.45731]
[1739628450510,0.276,2701.4,2700.7,3.70274]
[1739628450819,0.276,2701.4,2701.1,3.70209]
[1739628450962,0.276,2701.4,2701.2,3.70203]
[1739628451311,0.276,2701.4,2700.8,0.79132148]
[1739628451312,3.97817,2702.6,2701.7,3.70133]
[1739628451464,3.7005,2702.4,2701.7,3.70133]
[1739628451814,3.70074,2702.2,2701.6,0.7543]
[1739628451976,3.0,2702.1,2701.6,0.7543]
[1739628452313,3.70074,2702.2,2701.6,0.7543]
[1739628452606,3.0,2702.1,2701.6,0.7543]
[1739628452911,0.55,2702.0,2701.6,0.7543]
[1739628453058,4.25098,2702.0,2701.4,0.7543]
[1739628453595,0.55,2702.0,2701.4,4.45607]
[1739628454713,4.25103,2702.0,2701.4,0.7543]
[1739628455022,0.55,2702.0,2701.5,3.70164]
[1739628455227,0.55,2702.0,2701.6,3.7015]
[1739628456491,0.55,2702.0,2701.4,4.45605]
[1739628456674,0.55,2702.0,2701.5,3.70164]
[1739628457018,0.55,2702.0,2701.6,3.73850131]
[1739628457222,0.55,2702.0,2701.7,3.70137]
[1739628457388,0.55,2702.0,2701.6,3.70149]
[1739628457590,0.55,2702.0,2701.6,7.40288]
[1739628457775,0.55,2702.0,2701.7,3.70135]
[1739628457981,0.55,2702.0,2701.6,3.70139]
[1739628459659,0.55,2702.0,2701.4,4.901575]
[1739628459807,0.55,2702.0,2701.5,3.70163]
[1739628460227,0.55,2702.0,2701.4,4.901575]
[1739628460552,0.55,2702.0,2701.4,4.45597]
[1739628460854,3.70105,2702.0,2701.5,3.70163]
[1739628460998,0.55,2702.1,2701.6,3.70145]
[1739628461822,4.25086,2702.1,2701.6,3.70145]
[1739628463355,4.25086,2702.1,2701.4,4.45597]
[1739628463559,3.70096,2702.0,2701.4,8.603267]
[1739628463712,5.04516,2702.1,2701.5,3.70161]
[1739628464261,0.7943,2702.8,2701.6,0.8032]
[1739628464559,3.70035,2702.5,2701.9,3.70108]
[1739628464706,3.70045,2702.4,2701.7,3.70137]
[1739628464908,4.2506,2702.3,2701.7,3.70137]
[1739628465107,4.2506,2702.3,2701.7,7.40266]
[1739628465407,0.55,2702.1,2701.7,3.70129]
[1739628465722,0.55,2702.1,2701.6,0.8032]
[1739628465921,0.55,2702.1,2701.3,4.505]
[1739628465922,3.70107,2702.0,2701.3,4.505]
[1739628466265,0.55,2702.1,2701.6,3.70141]
[1739628467012,0.55,2702.1,2701.7,3.70132]
[1739628467356,3.0,2702.3,2701.9,3.70107]
[1739628467724,0.55,2702.2,2701.9,3.70107]
[1739628468344,3.70049,2702.4,2701.9,3.70107]
[1739628468861,0.55,2702.3,2701.8,0.8032]
[1739628469161,4.25055,2702.3,2701.8,0.8032]
[1739628469325,4.25055,2702.3,2701.8,4.50441]
[1739628469326,0.55,2702.3,2701.8,4.50441]
[1739628469763,3.0,2702.5,2702.0,3.70094]
[1739628469969,3.7943,2702.6,2701.9,0.03700903]
[1739628470199,4.0713,2702.6,2702.2,3.70067]
[1739628470477,4.0713,2702.6,2702.2,3.7006]
[1739628470960,4.0713,2702.6,2702.0,3.70089]
[1739628471167,3.70036,2702.5,2701.9,3.701]
[1739628471328,3.0,2702.4,2702.0,3.70093]
[1739628471661,3.55,2702.5,2702.0,3.70087]
[1739628471868,3.55,2702.5,2702.0,3.73787534]
[1739628472228,7.25027,2702.5,2701.9,0.9025948]
[1739628472432,3.70042,2702.4,2701.9,0.9025948]
[1739628472656,3.55,2702.5,2701.9,4.6036148]
[1739628473148,0.55,2702.5,2702.1,3.70074]
[1739628474226,3.0,2702.7,2702.1,3.70073]
[1739628474415,0.277,2702.6,2702.3,4.5037]
[1739628475328,0.277,2702.6,2702.3,8.2042]
[1739628475529,0.277,2702.6,2702.3,4.5037]
[1739628476151,0.277,2702.6,2702.3,0.8032]
[1739628476636,0.277,2702.6,2702.3,4.50372]
[1739628476931,3.7943,2702.9,2702.4,4.150742]
[1739628477149,3.7943,2702.9,2702.5,3.70023]
[1739628477363,0.7943,2702.9,2702.5,3.70023]
[1739628477736,0.7943,2702.9,2702.4,0.450372]
[1739628477941,4.49403,2702.9,2702.4,0.450372]
[1739628479044,4.49403,2702.9,2702.4,0.48737157]
[1739628479265,4.49403,2702.9,2702.5,0.86914616]
[1739628480769,3.70002,2702.7,2702.5,0.86914616]
[1739628480944,3.6999,2702.8,2702.4,0.450372]
[1739628481685,3.70007,2702.7,2702.4,0.450372]
[1739628481841,3.70033,2702.5,2702.1,0.7631]
[1739628482180,0.8298,2702.6,2702.1,4.46389]
[1739628482336,0.8298,2702.6,2702.1,0.7631]
[1739628482337,3.70031,2702.5,2702.1,0.7631]
[1739628482537,3.7001,2702.7,2702.1,0.7631]
[1739628482769,3.70008,2702.7,2702.1,4.46384]
[1739628483175,3.70008,2702.7,2702.1,0.7631]
[1739628483379,4.53015,2702.5,2701.9,5.20712442]
[1739628483690,4.53015,2702.5,2701.9,4.4641]
[1739628484037,0.8298,2702.5,2701.9,4.4641]
[1739628484238,0.8298,2702.5,2702.0,1.02985532]
[1739628484473,0.8298,2702.5,2702.1,0.3769475]
[1739628485153,0.8298,2702.5,2702.1,4.0777475]
[1739628485557,0.55,2702.5,2702.1,4.0777475]
[1739628485872,3.97602,2702.7,2702.2,3.70066]
[1739628486347,3.70029,2702.5,2702.1,0.3769475]
[1739628486547,1.3798,2702.6,2701.9,4.4641]
[1739628486785,1.3798,2702.6,2702.1,3.7008]
[1739628487280,1.3798,2702.6,2701.9,4.46412]
[1739628487472,1.3798,2702.6,2701.9,0.7631]
[1739628487786,1.3798,2702.6,2702.2,3.70066]
[1739628487968,3.97608,2702.7,2702.3,3.70053]
[1739628487969,0.276,2702.7,2702.3,3.70053]
[1739628488175,0.276,2702.7,2702.4,4.46343]
[1739628488349,3.69954,2703.1,2702.5,3.7002]
[1739628488671,3.276,2703.0,2702.5,3.7002]
[1739628488866,3.276,2703.0,2702.5,4.59202928]
[1739628489072,3.276,2703.0,2702.5,0.89182928]
[1739628489275,0.55,2702.9,2702.4,0.7631]
[1739628489585,4.24975,2702.9,2702.4,8.16377]
[1739628489751,4.24975,2702.9,2702.4,4.46343]
[1739628490664,4.24975,2702.9,2702.4,0.7631]
[1739628490665,3.69994,2702.8,2702.4,0.7631]
[1739628490870,4.24975,2702.9,2702.4,0.7631]
[1739628492086,4.24975,2702.9,2702.4,1.65390804]
[1739628492388,4.24975,2702.9,2702.4,5.35422804]
[1739628492549,3.69988,2702.8,2702.4,1.65390804]
[1739628493158,3.69988,2702.8,2702.4,0.7631]
[1739628494092,3.52668676,2703.9,2702.4,0.7631]
[1739628494389,4.80433,2703.8,2703.1,4.46248]
[1739628494591,4.80433,2703.8,2703.3,3.69917]
[1739628494752,3.0,2703.7,2703.2,0.446248]
[1739628495301,0.8328,2704.1,2703.2,0.446248]
[1739628495464,0.276,2703.9,2703.6,3.69872]
[1739628495663,1.75670253,2704.3,2703.6,3.69872]
[1739628495664,2.03270253,2704.3,2703.8,4.50468]
[1739628495963,2.03270253,2704.3,2703.8,5.32871841]